bitfinex-derivatives/quotes_BTCF0:USTF0_20250823
["timestamp","ask_amount","ask_price","bid_price","bid_amount"]
[1755934496400,1.68767625,115730.0,115720.0,0.84568024]
[1755934496701,1.68767625,115730.0,115720.0,0.83255616]
[1755934496900,1.68767625,115730.0,115720.0,0.84568054]
[1755934497402,1.30712182,115730.0,115720.0,0.84568054]
[1755934497802,1.57092738,115730.0,115720.0,0.84568054]
[1755934499003,1.32092738,115730.0,115720.0,0.84568054]
[1755934500804,2.06308181,115730.0,115720.0,0.63957954]
[1755934501000,2.31308181,115730.0,115720.0,0.60851012]
[1755934501399,2.31308181,115730.0,115720.0,0.59093151]
[1755934501604,2.38166886,115730.0,115720.0,0.59093151]
[1755934501797,2.38166886,115730.0,115720.0,0.09093151]
[1755934502398,2.00125279,115730.0,115720.0,0.09093151]
[1755934502601,2.00125279,115730.0,115720.0,0.01312438]
[1755934504412,2.00125279,115730.0,115710.0,0.02443]
[1755934504413,0.0864511,115720.0,115710.0,0.05709]
[1755934504606,0.86350389,115720.0,115710.0,0.20488024]
[1755934504796,0.86350389,115720.0,115710.0,0.21923024]
[1755934506397,0.4828111,115720.0,115710.0,0.21923024]
[1755934506604,0.0864511,115720.0,115710.0,0.28615894]
[1755934506910,0.02661941,115740.0,115730.0,0.22597695]
[1755934507208,0.9323513,115750.0,115740.0,0.2082863]
[1755934507512,0.9323513,115750.0,115740.0,0.3298154]
[1755934508306,0.9323513,115750.0,115740.0,0.22110654]
[1755934508501,0.9353513,115750.0,115740.0,0.22110654]
[1755934508909,0.82883,115750.0,115740.0,0.22110654]
[1755934509110,0.81036,115750.0,115740.0,0.91830336]
[1755934509416,0.004,115750.0,115740.0,0.91830336]
[1755934509616,0.02402858,115750.0,115740.0,1.41830336]
[1755934509820,0.004,115750.0,115740.0,1.90770501]
[1755934510109,0.81028,115760.0,115750.0,0.2082788]
[1755934510315,0.50185097,115780.0,115770.0,0.1345139]
[1755934510512,1.20563017,115780.0,115770.0,0.22105473]
[1755934510709,0.82936017,115780.0,115770.0,0.58185473]
[1755934510907,1.24236721,115790.0,115780.0,0.2082564]
[1755934511111,1.34923259,115790.0,115780.0,0.22104723]
[1755934511409,1.36932259,115790.0,115780.0,0.28301373]
[1755934511615,1.36932259,115790.0,115780.0,0.22104723]
[1755934511818,1.36932259,115790.0,115780.0,0.72104723]
[1755934512205,1.36932259,115790.0,115780.0,0.7829776]
[1755934512411,1.37132259,115790.0,115780.0,0.7829776]
[1755934512612,1.37332259,115790.0,115780.0,0.7829776]
[1755934513211,0.92612369,115790.0,115780.0,0.7829776]
[1755934513413,0.90603369,115790.0,115780.0,1.14374636]
[1755934513609,0.83534648,115790.0,115780.0,1.41818296]
[1755934513816,0.83534648,115790.0,115780.0,1.51818296]
[1755934514017,0.83534648,115790.0,115780.0,1.59570493]
[1755934514213,0.83534648,115790.0,115780.0,1.51818296]
[1755934515320,0.83534648,115790.0,115780.0,1.58001096]
[1755934517217,0.83534648,115790.0,115780.0,1.51818296]
[1755934517620,0.83534648,115790.0,115780.0,1.58001096]
[1755934518108,0.02446648,115790.0,115780.0,1.58001096]
[1755934518312,0.02446648,115790.0,115780.0,1.51818296]
[1755934521019,0.02446648,115790.0,115780.0,1.91642978]
[1755934521225,0.004,115790.0,115780.0,1.91642978]
[1755934522726,0.004,115790.0,115780.0,1.91648624]
[1755934522927,0.004,115790.0,115780.0,1.97831424]
[1755934523331,0.004,115790.0,115780.0,1.91648624]
[1755934524017,0.004,115790.0,115780.0,1.97831424]
[1755934524222,0.82411,115810.0,115800.0,0.01544]
[1755934524417,0.83451,115810.0,115800.0,0.58185775]
[1755934524618,0.02587,115810.0,115800.0,0.58185775]
[1755934524814,0.00214,115810.0,115800.0,0.66822472]
[1755934525013,0.98470952,115820.0,115810.0,0.1938842]
[1755934525219,0.96401577,115820.0,115810.0,0.13466605]
[1755934525425,0.96401577,115820.0,115810.0,0.22105025]
[1755934525625,0.93678577,115820.0,115810.0,0.22105025]
[1755934526128,0.94078577,115820.0,115810.0,0.22105025]
[1755934526427,0.94578577,115820.0,115810.0,0.22105025]
[1755934527321,0.94578577,115820.0,115810.0,0.72105025]
[1755934528828,1.00955633,115820.0,115810.0,0.72105025]
[1755934529718,0.93902577,115820.0,115810.0,0.72105025]
[1755934529923,0.85264677,115820.0,115810.0,0.72105025]
[1755934531823,0.93902377,115820.0,115810.0,0.72104071]
[1755934532124,0.83543677,115820.0,115810.0,1.16818531]
[1755934532319,0.84183677,115820.0,115810.0,1.16818531]
[1755934532523,0.85264677,115820.0,115810.0,1.16818531]
[1755934534828,0.93902377,115820.0,115810.0,1.16818531]
[1755934536932,0.85264677,115820.0,115810.0,1.16818531]
[1755934538024,0.93902377,115820.0,115810.0,1.16818531]
[1755934538931,0.85264677,115820.0,115810.0,1.16818531]
[1755934539334,0.83143677,115820.0,115810.0,1.48001331]
[1755934539632,0.83143677,115820.0,115810.0,1.8607061]
[1755934540029,0.83143677,115820.0,115810.0,1.48001331]
[1755934540920,0.83143677,115820.0,115810.0,1.47998711]
[1755934541326,0.02911725,115820.0,115810.0,1.47998711]
[1755934542830,0.02911725,115820.0,115810.0,2.28586711]
[1755934543735,0.02911725,115820.0,115810.0,2.22403911]
[1755934543930,0.02911725,115820.0,115810.0,2.68225387]
[1755934544132,0.02911725,115820.0,115810.0,2.6047319]
[1755934544533,0.009,115820.0,115810.0,2.62205606]
[1755934544725,2.5387653,115840.0,115830.0,0.11864]
[1755934544930,2.5387653,115840.0,115830.0,0.13142031]
[1755934545238,2.5387653,115840.0,115830.0,0.21778981]
[1755934545537,2.5387653,115840.0,115830.0,0.71778981]
[1755934545735,2.5387653,115840.0,115830.0,1.07858981]
[1755934546640,0.80528,115840.0,115830.0,1.1649195]
[1755934546837,0.80528,115840.0,115830.0,1.22689313]
[1755934547240,0.01993172,115840.0,115830.0,1.22689313]
[1755934547428,0.9122848,115850.0,115840.0,0.1247321]
[1755934547633,0.9122848,115850.0,115840.0,0.27971158]
[1755934547835,0.9122848,115850.0,115840.0,0.21778241]
[1755934548341,0.93909545,115850.0,115840.0,0.21778241]
[1755934548640,0.94209545,115850.0,115840.0,0.71778241]
[1755934550044,0.94209545,115850.0,115840.0,0.7050021]
[1755934550243,0.94209545,115850.0,115840.0,0.71770439]
[1755934550443,0.94209545,115850.0,115840.0,0.68507439]
[1755934550638,0.94209545,115850.0,115840.0,0.58466229]
[1755934551036,0.94209545,115850.0,115840.0,0.71770439]
[1755934551539,1.93438824,115850.0,115840.0,0.51270229]
[1755934552138,1.55369545,115850.0,115840.0,0.51270229]
[1755934552345,1.93438824,115850.0,115840.0,0.51270229]
[1755934552542,1.93438824,115850.0,115840.0,0.01270229]
[1755934556953,1.93438824,115850.0,115840.0,0.00194229]
[1755934557155,0.0863697,115830.0,115820.0,0.02256771]
[1755934557450,1.63646249,115830.0,115820.0,0.09357688]
[1755934557650,1.63646249,115830.0,115820.0,0.02256771]
[1755934557844,0.0894772,115820.0,115810.0,0.10231333]
[1755934558049,0.47210999,115820.0,115810.0,0.08826333]
[1755934558554,0.83290999,115820.0,115810.0,0.08826333]
[1755934558956,0.83290999,115820.0,115810.0,0.02633416]
[1755934559144,0.83290999,115820.0,115810.0,0.08826333]
[1755934559348,0.83790999,115820.0,115810.0,0.11112333]
[1755934559748,0.4572172,115820.0,115810.0,0.13366416]
[1755934559949,0.4572172,115820.0,115810.0,0.22004866]
[1755934560353,0.4572172,115820.0,115810.0,0.13366416]
[1755934562757,0.4552772,115820.0,115810.0,0.22004876]
[1755934562957,0.3689,115820.0,115810.0,0.22004876]
[1755934563154,1.17128,115820.0,115810.0,0.47004876]
[1755934563352,1.2576572,115820.0,115810.0,0.47004876]
[1755934563757,1.2576572,115820.0,115810.0,0.53197793]
[1755934563962,0.8968572,115820.0,115810.0,0.53197793]
[1755934564172,0.8999572,115820.0,115810.0,0.53197793]
[1755934564459,0.8999572,115820.0,115810.0,1.03197793]
[1755934565160,0.8999572,115820.0,115810.0,0.97004876]
[1755934565956,0.0081,115820.0,115810.0,0.97004876]
[1755934566162,0.005,115820.0,115810.0,1.79788615]
[1755934566566,0.005,115820.0,115810.0,1.41719336]
[1755934568961,0.0913772,115820.0,115810.0,1.41719336]
[1755934569161,0.0913772,115820.0,115810.0,1.49471533]
[1755934570460,0.0913772,115820.0,115810.0,1.41719336]
[1755934571658,0.0913772,115820.0,115810.0,1.49471533]
[1755934573263,0.005,115820.0,115810.0,1.49471533]
[1755934573652,0.005,115820.0,115810.0,1.79788615]
[1755934574065,0.005,115820.0,115810.0,1.87540812]
[1755934574761,0.80476,115830.0,115820.0,0.134107]
[1755934575066,0.0863696,115830.0,115820.0,0.67209297]
[1755934575462,0.0863696,115830.0,115820.0,0.75843757]
[1755934576163,0.0863696,115830.0,115820.0,1.25843757]
[1755934576665,0.0913696,115830.0,115820.0,1.25843757]
[1755934577761,0.005,115830.0,115820.0,1.25843757]
[1755934578266,0.005,115830.0,115820.0,1.1498616]
[1755934578668,0.005,115830.0,115820.0,1.25843757]
[1755934579169,0.0913696,115830.0,115820.0,1.25843757]
[1755934581871,0.1043696,115830.0,115820.0,1.25843757]
[1755934583166,0.0963696,115830.0,115820.0,1.25843757]
[1755934587468,0.1043696,115830.0,115820.0,1.25843757]
[1755934588170,0.1043696,115830.0,115820.0,1.1498616]
[1755934588371,0.0963696,115830.0,115820.0,1.1498616]
[1755934590365,0.0913696,115830.0,115820.0,1.1498616]
[1755934591175,0.005,115830.0,115820.0,1.53055439]
[1755934591576,0.005,115830.0,115820.0,1.63913036]
[1755934591876,0.8911675,115840.0,115830.0,0.1348601]
[1755934592070,0.8048,115840.0,115830.0,0.6630812]
[1755934592270,0.8911626,115840.0,115830.0,0.6630812]
[1755934592471,0.13340054,115850.0,115840.0,0.1598326]
[1755934592676,0.92784054,115850.0,115840.0,0.2070826]
[1755934593076,0.93284054,115850.0,115840.0,0.2070826]
[1755934594075,0.12940054,115850.0,115840.0,0.2070826]
[1755934594278,0.93160054,115850.0,115840.0,0.2846318]
[1755934594972,0.94460054,115850.0,115840.0,0.2846318]
[1755934595174,0.94770054,115850.0,115840.0,0.2846318]
[1755934595376,0.94770054,115850.0,115840.0,0.6982692]
[1755934595576,1.31044054,115850.0,115840.0,0.6982692]
[1755934595775,1.31044054,115850.0,115840.0,0.62072]
[1755934599983,1.31044054,115850.0,115840.0,0.6982692]
[1755934600782,1.30844054,115850.0,115840.0,0.6982692]
[1755934601982,1.93913333,115850.0,115840.0,0.6648092]
[1755934602286,1.93993333,115850.0,115840.0,0.52498]
[1755934602590,1.93913333,115850.0,115840.0,0.52498]
[1755934603084,1.93913333,115850.0,115840.0,0.6025292]
[1755934603286,1.93913333,115850.0,115840.0,0.1025292]
[1755934603688,1.93913333,115850.0,115840.0,0.1681292]
[1755934603878,1.93913333,115850.0,115840.0,0.1982692]
[1755934603879,1.55844054,115850.0,115840.0,0.1982692]
[1755934605991,1.93913333,115850.0,115840.0,0.21110059]
[1755934608190,1.93913333,115850.0,115840.0,0.1982692]
[1755934608488,1.55844054,115850.0,115840.0,0.1982692]
[1755934608690,1.93913333,115850.0,115840.0,0.1982692]
[1755934609089,1.30650054,115850.0,115840.0,0.1982692]
[1755934609991,1.30650054,115850.0,115840.0,0.12072]
[1755934610496,1.30450054,115850.0,115840.0,0.12072]
[1755934611388,1.30550054,115850.0,115840.0,0.12072]
[1755934611792,0.94470054,115850.0,115840.0,0.12072]
[1755934613791,0.94664054,115850.0,115840.0,0.12072]
[1755934614103,1.30744054,115850.0,115840.0,0.12072]
[1755934616594,0.94664054,115850.0,115840.0,0.12072]
[1755934616785,1.30744054,115850.0,115840.0,0.12072]
[1755934617291,1.30744054,115850.0,115840.0,0.1982692]
[1755934617593,1.30744054,115850.0,115840.0,0.284632]
[1755934617895,0.94664054,115850.0,115840.0,0.284632]
[1755934618199,0.94664054,115850.0,115840.0,0.1982692]
[1755934618587,0.94664054,115850.0,115840.0,0.284632]
[1755934619194,0.94470054,115850.0,115840.0,0.29771235]
[1755934620697,0.94470054,115850.0,115840.0,0.29771215]
[1755934621095,0.94664054,115850.0,115840.0,0.29771215]
[1755934621397,1.30744054,115850.0,115840.0,0.29771215]
[1755934621897,0.94664054,115850.0,115840.0,0.29771457]
[1755934622197,1.30744054,115850.0,115840.0,0.29771457]
[1755934622497,0.94664054,115850.0,115840.0,0.29771471]
[1755934622792,0.92571245,115850.0,115840.0,0.29771471]
[1755934623590,0.92571245,115850.0,115840.0,0.72016551]
[1755934625097,0.92571245,115850.0,115840.0,0.72116551]
[1755934626005,0.92471245,115850.0,115840.0,0.72116551]
[1755934626302,0.92471245,115850.0,115840.0,0.82974148]
[1755934626910,0.83255065,115850.0,115840.0,1.98516893]
[1755934627098,0.83755065,115850.0,115840.0,1.87659296]
[1755934627298,0.83755065,115850.0,115840.0,1.79898054]
[1755934627609,0.83755065,115850.0,115840.0,1.52686372]
[1755934627913,0.83755065,115850.0,115840.0,1.41828775]
[1755934629607,0.02005065,115850.0,115840.0,1.79898054]
[1755934629806,0.9038087,115860.0,115850.0,0.1333952]
[1755934630107,0.9038087,115860.0,115850.0,0.65663071]
[1755934630606,0.9038087,115860.0,115850.0,0.74295295]
[1755934630812,0.9038087,115860.0,115850.0,0.38215295]
[1755934631112,0.9038087,115860.0,115850.0,0.38213725]
[1755934631310,0.9038087,115860.0,115850.0,0.36907004]
[1755934631612,0.91978257,115860.0,115850.0,0.88213445]
[1755934632511,0.91978257,115860.0,115850.0,0.88313445]
[1755934632710,0.91978257,115860.0,115850.0,0.91417782]
[1755934633811,0.91978257,115860.0,115850.0,0.93135161]
[1755934634012,0.91978257,115860.0,115850.0,1.29215161]
[1755934634314,0.91978257,115860.0,115850.0,0.93135161]
[1755934636518,0.91978257,115860.0,115850.0,1.0088191]
[1755934636710,0.91978257,115860.0,115850.0,0.90024313]
[1755934637617,0.92172257,115860.0,115850.0,0.90024313]
[1755934638103,0.91978257,115860.0,115850.0,0.90024313]
[1755934639714,0.91978257,115860.0,115850.0,0.82277564]
[1755934639923,0.91978257,115860.0,115850.0,0.80971123]
[1755934640115,0.91978257,115860.0,115850.0,0.822897]
[1755934641619,0.91978257,115860.0,115850.0,0.90036449]
[1755934642421,0.91978257,115860.0,115850.0,0.822897]
[1755934644126,0.91978257,115860.0,115850.0,0.90036449]
[1755934646024,0.91978257,115860.0,115850.0,1.26116449]
[1755934647109,0.11342257,115860.0,115850.0,1.26116449]
[1755934647315,0.81701387,115860.0,115850.0,1.64185728]
[1755934647620,0.01597387,115860.0,115850.0,1.67296576]
[1755934647815,0.95524447,115870.0,115860.0,0.102258]
[1755934648015,0.8873827,115870.0,115860.0,0.70822253]
[1755934648215,0.80104,115870.0,115860.0,1.06902253]
[1755934648414,0.81679014,115870.0,115860.0,1.15533732]
[1755934649215,0.81679014,115870.0,115860.0,1.40533437]
[1755934649411,0.81679014,115870.0,115860.0,1.90533437]
[1755934649616,0.01675014,115870.0,115860.0,1.90533437]
[1755934649815,0.01675014,115870.0,115860.0,1.90533362]
[1755934650016,0.01675014,115870.0,115860.0,1.65533362]
[1755934650724,0.01675014,115870.0,115860.0,2.34775765]
[1755934651125,0.01675014,115870.0,115860.0,2.70633362]
[1755934652124,0.01675014,115870.0,115860.0,2.59775765]
[1755934652325,0.01675014,115870.0,115860.0,1.79675765]
[1755934652625,0.01675014,115870.0,115860.0,1.90512419]
[1755934652828,0.01675014,115870.0,115860.0,1.79675765]
[1755934653026,0.01675014,115870.0,115860.0,1.90512004]
[1755934653525,0.01675014,115870.0,115860.0,1.79675765]
[1755934653921,0.01675014,115870.0,115860.0,1.9051063]
[1755934654317,0.10308724,115870.0,115860.0,1.9051063]
[1755934654632,0.10308724,115870.0,115860.0,1.52441351]
[1755934654633,0.11608724,115870.0,115860.0,1.52441351]
[1755934657931,0.11608724,115870.0,115860.0,1.41606486]
[1755934658326,0.11918724,115870.0,115860.0,1.15287889]
[1755934658519,0.11918724,115870.0,115860.0,1.16595532]
[1755934658927,0.11918724,115870.0,115860.0,1.16595562]
[1755934663335,0.11918724,115870.0,115860.0,0.79620011]
[1755934664029,0.11918724,115870.0,115860.0,0.88254421]
[1755934664626,0.11918724,115870.0,115860.0,0.71881152]
[1755934665138,0.11918724,115870.0,115860.0,0.80515562]
[1755934667438,0.10808724,115870.0,115860.0,1.15287889]
[1755934667639,0.10808724,115870.0,115860.0,1.16573445]
[1755934668040,0.10308724,115870.0,115860.0,1.16573488]
[1755934668438,0.10308724,115870.0,115860.0,1.16573478]
[1755934669738,0.10308724,115870.0,115860.0,0.8823507]
[1755934670131,0.10308724,115870.0,115860.0,0.80493478]
[1755934670333,0.10308724,115870.0,115860.0,1.16573478]
[1755934670639,0.10308724,115870.0,115860.0,1.15287889]
[1755934670839,0.10308724,115870.0,115860.0,1.165738]
[1755934671251,0.10308724,115870.0,115860.0,1.16573955]
[1755934672340,0.10308724,115870.0,115860.0,1.54529826]
[1755934672738,0.10308724,115870.0,115860.0,1.65364691]
[1755934673333,0.10308724,115870.0,115860.0,1.54529826]
[1755934674041,0.10308724,115870.0,115860.0,1.65364691]
[1755934674344,0.10308724,115870.0,115860.0,1.54529826]
[1755934676937,0.10308724,115870.0,115860.0,1.54531313]
[1755934677243,0.10308724,115870.0,115860.0,1.65366178]
[1755934678142,0.10308724,115870.0,115860.0,1.54531313]
[1755934678947,0.10308724,115870.0,115860.0,1.65366178]
[1755934679150,0.10308724,115870.0,115860.0,1.27410307]
[1755934679445,0.48264595,115870.0,115860.0,1.65365688]
[1755934679645,0.48264595,115870.0,115860.0,1.54530823]
[1755934679837,0.10308724,115870.0,115860.0,1.54530823]
[1755934680143,0.10308724,115870.0,115860.0,1.54531563]
[1755934680344,0.49374595,115870.0,115860.0,0.99310293]
[1755934680546,0.49874595,115870.0,115860.0,1.01186164]
[1755934680845,0.49874595,115870.0,115860.0,0.70987987]
[1755934681036,0.49874595,115870.0,115860.0,1.01186164]
[1755934681346,0.49564595,115870.0,115860.0,1.01186164]
[1755934681538,0.49564595,115870.0,115860.0,1.37266164]
[1755934681738,0.49564595,115870.0,115860.0,1.01186164]
[1755934681939,0.49564595,115870.0,115860.0,1.08943392]
[1755934682237,0.49564595,115870.0,115860.0,1.01186164]
[1755934682443,0.49564595,115870.0,115860.0,0.63230293]
[1755934683040,0.11608724,115870.0,115860.0,0.63230293]
[1755934683244,0.10308724,115870.0,115860.0,1.09820084]
[1755934683645,0.10308724,115870.0,115860.0,1.20654949]
[1755934684239,0.10308724,115870.0,115860.0,1.56734949]
[1755934684540,1.26676811,115880.0,115870.0,0.2065018]
[1755934684743,1.26676811,115880.0,115870.0,0.32798629]
[1755934684936,1.26676811,115880.0,115870.0,0.31510336]
[1755934685137,1.26676811,115880.0,115870.0,0.70754609]
[1755934685450,1.27176811,115880.0,115870.0,1.06834609]
[1755934685753,1.27176811,115880.0,115870.0,0.68878738]
[1755934685949,1.27376811,115880.0,115870.0,1.18878738]
[1755934686333,1.27376811,115880.0,115870.0,1.08018582]
[1755934687450,0.8892094,115880.0,115870.0,1.45974453]
[1755934687641,0.90408872,115880.0,115870.0,1.45974453]
[1755934687843,0.90408872,115880.0,115870.0,1.56834609]
[1755934688246,0.90408872,115880.0,115870.0,1.45974453]
[1755934689048,0.90408872,115880.0,115870.0,1.56834609]
[1755934689250,0.90208872,115880.0,115870.0,1.19078738]
[1755934689449,0.90208872,115880.0,115870.0,1.57034609]
[1755934689743,0.90208872,115880.0,115870.0,1.56934609]
[1755934690051,0.90132872,115880.0,115870.0,1.56834609]
[1755934690243,0.90132872,115880.0,115870.0,1.45974453]
[1755934690744,0.90132872,115880.0,115870.0,1.56834609]
[1755934692543,0.90132872,115880.0,115870.0,1.55546207]
[1755934692751,0.90132872,115880.0,115870.0,1.56833849]
[1755934694150,0.90132872,115880.0,115870.0,1.55546207]
[1755934694454,0.90132872,115880.0,115870.0,1.56833746]
[1755934694751,0.10120872,115880.0,115870.0,1.4597359]
[1755934694943,0.90124872,115880.0,115870.0,1.4597359]
[1755934696342,0.10120872,115880.0,115870.0,1.4597359]
[1755934696551,0.90120872,115880.0,115870.0,1.4597359]
[1755934697149,0.90120872,115880.0,115870.0,1.4607359]
[1755934698053,0.90620872,115880.0,115870.0,1.4607359]
[1755934698455,0.90120872,115880.0,115870.0,1.4607359]
[1755934698650,0.90120872,115880.0,115870.0,1.56933746]
[1755934699856,0.90120872,115880.0,115870.0,1.18977875]
[1755934700049,0.90120872,115880.0,115870.0,1.56933746]
[1755934700254,0.90620872,115880.0,115870.0,1.56933746]
[1755934701152,0.90120872,115880.0,115870.0,1.56933746]
[1755934701450,0.81487932,115880.0,115870.0,1.65563735]
[1755934701647,0.90120402,115880.0,115870.0,1.73316401]
[1755934701961,0.90120402,115880.0,115870.0,1.62456245]
[1755934702648,0.90120402,115880.0,115870.0,1.62556245]
[1755934702847,0.90120402,115880.0,115870.0,1.54803579]
[1755934703046,0.01487932,115880.0,115870.0,1.62555278]
[1755934703242,0.53578942,115890.0,115880.0,0.0863247]
[1755934703243,1.33566942,115890.0,115880.0,0.0863247]
[1755934703447,1.33566942,115890.0,115880.0,0.95970986]
[1755934703647,1.34066942,115890.0,115880.0,0.95970986]
[1755934703844,0.96111071,115890.0,115880.0,1.0243704]
[1755934704049,0.79988,115890.0,115880.0,1.04600166]
[1755934704349,0.79988,115890.0,115880.0,1.15460121]
[1755934704654,0.8861973,115890.0,115880.0,1.17232127]
[1755934705155,0.8911973,115890.0,115880.0,1.67232127]
[1755934706061,0.8911973,115890.0,115880.0,1.67332127]
[1755934706563,0.90553543,115890.0,115880.0,1.29376256]
[1755934706757,0.81421813,115890.0,115880.0,1.67332127]
[1755934706958,0.81409813,115890.0,115880.0,1.67332127]
[1755934707260,0.81409813,115890.0,115880.0,2.02332127]
[1755934708359,0.90041533,115890.0,115880.0,2.02332127]
[1755934708560,0.91341533,115890.0,115880.0,2.02332127]
[1755934708763,0.91651533,115890.0,115880.0,2.02332127]
[1755934709966,0.91651533,115890.0,115880.0,1.77332127]
[1755934710161,0.91651533,115890.0,115880.0,1.39376256]
[1755934710464,0.91651533,115890.0,115880.0,1.77332127]
[1755934712556,0.91651533,115890.0,115880.0,1.77330399]
[1755934712840,0.91341533,115890.0,115880.0,1.77330399]
[1755934713263,0.91341533,115890.0,115880.0,1.28514372]
[1755934713465,0.91341533,115890.0,115880.0,1.66470243]
[1755934714371,0.91651533,115890.0,115880.0,1.66470243]
[1755934715571,0.91651533,115890.0,115880.0,1.66470344]
[1755934716072,1.29607404,115890.0,115880.0,1.28514473]
[1755934716367,1.29607404,115890.0,115880.0,1.66470344]
[1755934718668,0.91651533,115890.0,115880.0,1.66470344]
[1755934718859,0.91651573,115890.0,115880.0,1.76470344]
[1755934719055,0.91651573,115890.0,115880.0,1.66470344]
[1755934719974,0.91651573,115890.0,115880.0,1.773305]
[1755934721166,0.91651573,115890.0,115880.0,1.39374629]
[1755934721370,0.91651573,115890.0,115880.0,1.773305]
[1755934721570,1.29607444,115890.0,115880.0,1.76046747]
[1755934721876,1.29607444,115890.0,115880.0,1.39374894]
[1755934722173,1.29607444,115890.0,115880.0,1.77330765]
[1755934722367,1.29607444,115890.0,115880.0,1.77330763]
[1755934723180,1.27480444,115890.0,115880.0,1.66470607]
[1755934724665,1.28900608,115890.0,115880.0,1.74214868]
[1755934724875,1.28900608,115890.0,115880.0,1.66470819]
[1755934725573,0.90944737,115890.0,115880.0,1.66470819]
[1755934727781,0.90944737,115890.0,115880.0,1.28514948]
[1755934727984,0.90944737,115890.0,115880.0,1.66470819]
[1755934731088,0.90944737,115890.0,115880.0,1.67327456]
[1755934731490,0.90944737,115890.0,115880.0,1.6732768]
[1755934731782,1.28900608,115890.0,115880.0,1.6732768]
[1755934735191,1.28900608,115890.0,115880.0,1.29371809]
[1755934735496,1.28900608,115890.0,115880.0,1.20742595]
[1755934736185,1.31123795,115890.0,115880.0,1.15118706]
[1755934736391,1.92203795,115890.0,115880.0,0.6817855]
[1755934736589,1.92203795,115890.0,115880.0,0.6427255]
[1755934736787,1.92203795,115890.0,115880.0,0.03775933]
[1755934737587,1.92203795,115890.0,115880.0,0.09979726]
[1755934738183,1.92203795,115890.0,115880.0,0.03775933]
[1755934738888,1.67203795,115890.0,115880.0,0.03775933]
[1755934739795,1.29247924,115890.0,115880.0,0.03775933]
[1755934739996,1.67203795,115890.0,115880.0,0.03775933]
[1755934740196,1.29247924,115890.0,115880.0,0.03775933]
[1755934740494,1.67203795,115890.0,115880.0,0.04722665]
[1755934740914,0.158145,115880.0,115870.0,0.10877611]
[1755934741092,0.1581525,115870.0,115860.0,0.17069156]
[1755934741290,1.33667121,115870.0,115860.0,0.06209]
[1755934741795,1.33667121,115870.0,115860.0,0.09464]
[1755934742097,1.69747121,115870.0,115860.0,0.09464]
[1755934742299,1.69747121,115870.0,115860.0,0.09664]
[1755934742600,1.69747121,115870.0,115860.0,0.59664]
[1755934742795,1.69747121,115870.0,115860.0,0.5503]
[1755934743004,1.71661965,115870.0,115860.0,0.505]
[1755934743189,1.71661965,115870.0,115860.0,0.56696072]
[1755934743190,1.96661965,115870.0,115860.0,0.56696072]
[1755934744593,1.96661965,115870.0,115860.0,0.06696072]
[1755934745200,1.96661965,115870.0,115860.0,0.005]
[1755934747497,1.96661965,115870.0,115860.0,0.02867]
[1755934748093,1.96661965,115870.0,115860.0,0.03814]
[1755934749103,1.96661965,115870.0,115860.0,0.10704]
[1755934749293,1.96661965,115870.0,115860.0,0.12331]
[1755934752204,1.96661965,115870.0,115860.0,0.10952]
[1755934757614,1.58706094,115870.0,115860.0,0.10952]
[1755934757804,1.96661965,115870.0,115860.0,0.10952]
[1755934760114,1.96661965,115870.0,115860.0,0.07697]
[1755934760315,1.96661965,115870.0,115860.0,0.0607]
[1755934760912,1.96661965,115870.0,115860.0,0.07341438]
[1755934764316,1.96661965,115870.0,115860.0,0.1353751]
[1755934764523,1.96661965,115870.0,115860.0,0.07341438]
[1755934764720,1.96661965,115870.0,115860.0,0.05085438]
[1755934765015,1.96661965,115870.0,115860.0,0.01771438]
[1755934765218,1.96661965,115870.0,115860.0,0.0796751]
[1755934767016,1.71661965,115870.0,115860.0,0.0796751]
[1755934767318,1.71661965,115870.0,115860.0,0.07970281]
[1755934767915,1.71661965,115870.0,115860.0,0.07470281]
[1755934768120,1.71661965,115870.0,115860.0,0.0132905]
[1755934768316,0.0863399,115860.0,115840.0,0.60327263]
[1755934768520,1.26478601,115850.0,115840.0,0.19092107]
[1755934769518,1.26478601,115850.0,115840.0,0.19592107]
[1755934769815,1.26478601,115850.0,115840.0,0.69592107]
[1755934770017,1.3340342,115850.0,115840.0,0.69592107]
[1755934770213,1.3340342,115850.0,115840.0,0.62566]
[1755934770518,1.3340342,115850.0,115840.0,0.53881]
[1755934770723,1.3340342,115850.0,115840.0,0.52975]
[1755934771222,1.3340342,115850.0,115840.0,0.03275]
[1755934771415,1.3340342,115850.0,115840.0,0.03175]
[1755934772025,1.3340342,115850.0,115840.0,0.03075]
[1755934773923,1.3340342,115850.0,115840.0,0.03981]
[1755934774619,1.3340342,115850.0,115840.0,0.06302]
[1755934775531,1.3340342,115850.0,115840.0,0.03981]
[1755934775728,1.3340342,115850.0,115840.0,0.03075]
[1755934779130,1.6948342,115850.0,115840.0,0.03075]
[1755934782138,1.3340342,115850.0,115840.0,0.03075]
[1755934782341,1.6948342,115850.0,115840.0,0.03075]
[1755934782549,1.3340342,115850.0,115840.0,0.03075]
[1755934782738,1.6948342,115850.0,115840.0,0.03075]
[1755934784243,1.6948342,115850.0,115840.0,0.03981]
[1755934785440,1.6948342,115850.0,115840.0,0.06302]
[1755934786148,1.6948342,115850.0,115840.0,0.07574098]
[1755934791853,1.6948342,115850.0,115840.0,0.07574306]
[1755934792549,2.34317124,115850.0,115840.0,0.00921706]
[1755934792754,0.0919722,115830.0,115820.0,0.05561811]
[1755934792951,1.63810091,115830.0,115820.0,0.04828]
[1755934793147,1.63810091,115830.0,115820.0,0.02507]
[1755934793341,1.63810091,115830.0,115810.0,0.52048526]
[1755934793342,0.1032897,115820.0,115810.0,0.52048526]
[1755934793542,0.48284841,115820.0,115810.0,0.52048526]
[1755934794049,0.47884841,115820.0,115810.0,0.65968526]
[1755934794556,0.47884841,115820.0,115810.0,0.68443526]
[1755934794854,0.47684841,115820.0,115810.0,0.69897526]
[1755934795350,0.50256086,115820.0,115810.0,0.69897526]
[1755934795953,0.50256086,115820.0,115810.0,0.70097526]
[1755934796551,0.50256086,115820.0,115810.0,0.70197526]
[1755934796856,0.12300215,115820.0,115810.0,0.70197526]
[1755934797044,0.50256086,115820.0,115810.0,0.70197526]
[1755934802752,0.12300215,115820.0,115810.0,0.70197526]
[1755934802950,0.50256086,115820.0,115810.0,0.70197526]
[1755934803754,0.12300215,115820.0,115810.0,0.70197526]
[1755934803953,0.48564086,115820.0,115810.0,0.78835246]
[1755934804356,0.48564086,115820.0,115810.0,1.52871117]
[1755934804860,0.48564086,115820.0,115810.0,1.54155257]
[1755934804861,0.10608215,115820.0,115810.0,1.54155257]
[1755934805261,0.10608215,115820.0,115810.0,1.46398731]
[1755934805562,0.10608215,115820.0,115810.0,1.0844286]
[1755934805864,0.02571245,115820.0,115810.0,1.79152584]
[1755934806163,1.26448611,115830.0,115820.0,0.2079097]
[1755934806356,1.26448611,115830.0,115820.0,0.67784662]
[1755934806762,1.30850781,115830.0,115820.0,0.67784662]
[1755934806962,0.9289491,115830.0,115820.0,0.67784662]
[1755934807463,1.30850781,115830.0,115820.0,0.67784662]